bitfinex-derivatives/quotes_ETHF0:USTF0_20251028
["timestamp","ask_amount","ask_price","bid_price","bid_amount"]
[1761621503978,44.1219,4084.5,4084.3,0.44072]
[1761621504181,4.3358,4084.4,4084.3,0.44072]
[1761621504371,4.3358,4084.4,4084.3,1.68502]
[1761621504572,4.58272532,4084.4,4084.3,1.68763785]
[1761621504880,4.58272532,4084.4,4084.3,1.24691785]
[1761621505174,4.58272532,4084.4,4084.3,1.68763785]
[1761621505474,4.58272532,4084.4,4084.3,0.44333785]
[1761621505873,4.58272532,4084.4,4084.3,0.00261785]
[1761621506272,4.58272532,4084.4,4084.3,1.68763785]
[1761621506472,4.58272532,4084.4,4084.3,2.90623785]
[1761621506667,1.48002532,4084.4,4084.3,4.69313785]
[1761621506869,3.27992532,4084.4,4084.3,6.01004461]
[1761621507072,4.58272532,4084.4,4084.3,6.01004461]
[1761621507476,4.58272532,4084.4,4084.3,2.56382461]
[1761621507776,4.58272532,4084.4,4084.3,3.78242461]
[1761621507974,4.58272532,4084.4,4084.3,5.56932461]
[1761621508175,4.58272532,4084.4,4084.3,4.25241785]
[1761621508675,4.58272532,4084.4,4084.3,2.46551785]
[1761621508875,4.58272532,4084.4,4084.3,4.25241785]
[1761621509275,0.00202532,4084.4,4084.3,8.62595167]
[1761621509475,0.00202532,4084.4,4084.3,9.94285843]
[1761621509778,3.03502532,4084.4,4084.3,9.94285843]
[1761621509981,0.65,4084.9,4084.8,4.69047]
[1761621510280,4.3358,4085.7,4085.6,2.4629]
[1761621510479,3.033,4086.0,4085.9,4.69035]
[1761621510876,1.7999,4086.4,4086.0,1.10135]
[1761621511078,0.2449,4086.2,4086.0,4.69034]
[1761621511382,0.2449,4086.2,4086.1,7.47179098]
[1761621511691,4.33867063,4086.4,4086.3,1.2443]
[1761621511991,4.3358,4086.3,4086.2,1.68482]
[1761621512586,4.5807,4086.3,4086.2,0.44052]
[1761621512784,4.5807,4086.3,4086.2,1.68482]
[1761621514991,2.3587,4086.1,4086.0,3.68917811]
[1761621515197,1.1041,4085.8,4085.7,5.25754811]
[1761621515390,1.1041,4086.0,4085.9,4.0668]
[1761621515689,2.8929,4086.3,4086.2,3.37951]
[1761621515893,4.1475,4086.3,4086.2,6.54108811]
[1761621516291,4.3924,4086.3,4086.2,6.54108811]
[1761621516588,4.3924,4086.3,4086.2,6.10057811]
[1761621516792,4.3924,4086.3,4086.2,4.81697811]
[1761621517497,4.3924,4086.3,4086.2,3.68917811]
[1761621517788,4.3924,4086.3,4086.2,7.75597811]
[1761621517993,4.3924,4086.3,4086.2,6.10057811]
[1761621518396,0.00287063,4086.4,4086.3,4.0668]
[1761621518989,0.00287063,4086.4,4086.3,4.50731]
[1761621520493,1.7888,4086.9,4086.8,4.50725]
[1761621520693,1.7888,4086.9,4086.8,8.19642811]
[1761621521088,2.3587,4087.3,4087.2,2.939]
[1761621521293,3.0793,4087.5,4087.2,3.68917811]
[1761621521493,2.6036,4087.3,4087.2,4.13194246]
[1761621521796,4.3924,4087.3,4087.2,5.25974246]
[1761621522487,4.3924,4087.3,4087.2,8.19874246]
[1761621522687,4.3924,4087.3,4087.2,6.10293246]
[1761621523597,4.3924,4087.3,4087.2,6.54334246]
[1761621525300,4.3924,4087.3,4087.2,8.19874246]
[1761621525499,4.3924,4087.3,4087.2,6.10293246]
[1761621525902,2.0337,4087.3,4087.2,8.19874246]
[1761621526201,4.3924,4087.3,4087.2,8.19874246]
[1761621526396,4.3924,4087.3,4087.2,6.10293246]
[1761621526597,4.3924,4087.3,4087.2,0.00235435]
[1761621526896,4.8328,4087.3,4087.2,0.00235435]
[1761621527300,4.3924,4087.3,4087.2,0.00235435]
[1761621528705,4.3924,4087.3,4087.2,7.75833246]
[1761621528908,4.3924,4087.3,4087.2,6.10293246]
[1761621530510,4.3924,4087.3,4087.2,0.00235435]
[1761621531506,12.8328,4087.3,4087.2,0.00235435]
[1761621531803,4.1475,4086.4,4086.3,4.81697811]
[1761621532009,4.3924,4086.4,4086.3,8.19648811]
[1761621532317,4.1475,4086.4,4086.3,8.19648811]
[1761621532811,4.1475,4086.4,4086.3,8.19894198]
[1761621533413,4.1475,4086.4,4086.3,4.81943198]
[1761621533610,4.1475,4086.4,4086.3,8.19894198]
[1761621534316,2.3587,4086.8,4086.7,1.1278]
[1761621534704,4.3924,4086.8,4086.7,1.1278]
[1761621535813,4.8681,4086.5,4086.4,1.1278]
[1761621536008,4.1475,4086.4,4086.3,5.25993198]
[1761621536208,4.3924,4086.4,4086.3,5.25993198]
[1761621536811,4.3924,4086.4,4086.3,6.54353198]
[1761621537208,4.3924,4086.4,4086.3,8.19893198]
[1761621538318,0.2449,4086.4,4086.3,8.19893198]
[1761621538518,3.1378,4086.4,4086.3,8.19893198]
[1761621538713,1.1041,4086.6,4086.5,2.09588]
[1761621538919,1.1041,4086.6,4086.5,4.50728]
[1761621538920,4.1475,4086.6,4086.5,4.50728]
[1761621540114,2.8929,4086.6,4086.5,4.50728]
[1761621540415,1.7888,4088.3,4087.5,2.1945]
[1761621540619,4.1475,4087.9,4087.8,3.68917811]
[1761621541020,4.3924,4087.9,4087.8,3.68917811]
[1761621541319,4.3924,4087.9,4087.8,4.81697811]
[1761621541516,0.00209411,4087.9,4087.8,6.10057811]
[1761621542119,2.89499411,4087.9,4087.8,7.75597811]
[1761621542319,2.89499411,4087.9,4087.8,9.07281388]
[1761621542522,2.89499411,4087.9,4087.8,7.75597811]
[1761621543319,2.89499411,4087.9,4087.8,9.07240725]
[1761621545518,4.39449411,4087.9,4087.8,3.68917811]
[1761621545717,2.2605,4087.4,4087.3,3.68917811]
[1761621545919,4.0673,4087.4,4087.3,3.68917811]
[1761621546220,4.0673,4087.4,4087.3,4.74687811]
[1761621546415,3.8224,4087.4,4087.3,7.50517811]
[1761621547120,4.0673,4087.4,4087.3,4.74687811]
[1761621547319,4.0673,4087.4,4087.3,7.39747811]
[1761621548221,3.6071,4087.6,4087.5,1.062]
[1761621548416,3.6071,4087.6,4087.5,3.7252]
[1761621548618,1.04059411,4087.9,4087.8,1.0746]
[1761621548823,0.00209411,4087.9,4087.8,8.73080725]
[1761621549224,0.00209411,4087.9,4087.8,7.41437811]
[1761621550723,0.00209411,4087.9,4087.3,1.31616932]
[1761621550724,3.6071,4087.4,4087.3,1.31616932]
[1761621550923,4.5009,4087.0,4086.9,1.31616932]
[1761621551327,3.6071,4086.9,4086.8,1.0746]
[1761621551529,1.557,4086.9,4086.8,3.7252]
[1761621551729,1.557,4087.3,4086.9,1.5886]
[1761621551919,2.5955,4087.0,4086.9,5.04155077]
[1761621552127,2.8404,4087.1,4087.0,3.7252]
[1761621552322,3.852,4087.1,4087.0,2.1366]
[1761621552624,3.6071,4087.1,4087.0,2.1366]
[1761621553118,4.256,4087.0,4086.9,1.31635077]
[1761621553427,4.5009,4087.0,4086.9,1.31635077]
[1761621554326,3.852,4086.9,4086.8,1.11635077]
[1761621554521,2.5686,4086.9,4086.8,2.1366]
[1761621554827,2.5686,4086.9,4086.6,0.44047]
[1761621554828,3.6071,4087.2,4087.1,1.0746]
[1761621555022,3.6071,4087.2,4087.1,4.76377811]
[1761621555223,3.852,4087.2,4087.1,3.68917811]
[1761621557227,2.5955,4087.2,4087.1,5.82577811]
[1761621557529,2.5955,4087.2,4087.1,7.41437811]
[1761621557824,1.6874,4087.5,4087.1,7.85479811]
[1761621558022,2.5955,4087.4,4087.3,2.1366]
[1761621558230,3.6071,4087.4,4087.3,2.1366]
[1761621558423,3.6071,4087.4,4087.3,1.0746]
[1761621558619,1.557,4087.3,4087.1,4.76377811]
[1761621558823,1.0385,4087.2,4087.1,4.76377811]
[1761621559019,2.5955,4087.2,4087.1,7.41437811]
[1761621559528,2.5955,4087.2,4087.1,7.85479811]
[1761621559731,2.5955,4087.4,4087.3,2.6506]
[1761621559930,2.5955,4087.4,4087.3,3.7252]
[1761621560228,3.852,4087.4,4087.3,2.1366]
[1761621562022,3.6071,4087.4,4087.3,2.1366]
[1761621562229,3.852,4087.4,4087.3,2.1366]
[1761621562532,3.852,4087.4,4087.3,3.7252]
[1761621563932,1.557,4087.6,4087.4,1.5886]
[1761621564124,2.8404,4087.5,4087.4,4.16559]
[1761621564330,3.6071,4087.8,4087.7,3.7252]
[1761621564732,3.6071,4087.8,4087.7,4.16555]
[1761621565027,0.00209411,4087.9,4087.7,4.16555]
[1761621565231,0.00209411,4087.9,4087.8,3.7252]
[1761621565629,2.59759411,4087.9,4087.8,3.7252]
[1761621566228,4.256,4087.5,4087.3,1.75741131]
[1761621566430,1.0385,4087.2,4087.1,1.75741131]
[1761621566630,3.852,4087.2,4087.1,3.89249267]
[1761621566831,3.6071,4087.2,4087.1,5.48109267]
[1761621567226,3.6071,4087.2,4087.1,1.0746]
[1761621567227,3.852,4087.2,4087.1,1.0746]
[1761621567938,3.852,4087.2,4087.1,3.7252]
[1761621568235,2.8404,4087.2,4087.1,3.7252]
[1761621568438,3.852,4087.2,4087.1,2.0366]
[1761621570336,3.852,4087.2,4087.1,3.6252]
[1761621571336,2.5955,4087.2,4087.1,4.06562]
[1761621571530,3.6071,4087.2,4087.1,2.0366]
[1761621571731,3.6071,4087.1,4087.0,2.1366]
[1761621572031,3.6071,4087.1,4087.0,2.57703]
[1761621572236,3.6071,4087.1,4087.0,4.16563]
[1761621574330,3.6071,4087.1,4087.0,5.82152267]
[1761621574933,3.6071,4087.1,4087.0,4.23292267]
[1761621576832,3.6071,4087.1,4087.0,3.79249267]
[1761621577231,3.6071,4087.1,4087.0,4.23292267]
[1761621577940,3.6071,4087.1,4087.0,5.67602267]
[1761621579939,3.6071,4087.1,4087.0,4.23292267]
[1761621580338,3.6071,4087.1,4087.0,2.47703]
[1761621582243,3.6071,4087.1,4087.0,3.92013]
[1761621582640,1.557,4087.1,4087.0,3.92013]
[1761621583042,3.4837,4087.4,4087.3,3.4096]
[1761621583342,3.4837,4087.4,4087.3,1.9665]
[1761621583535,3.7286,4087.4,4087.3,1.9665]
[1761621585138,1.4924,4087.3,4087.2,1.75997885]
[1761621585345,2.4153,4087.2,4087.1,2.72867885]
[1761621585544,3.4837,4087.2,4087.1,3.72647885]
[1761621585844,3.7286,4087.2,4087.1,3.72647885]
[1761621586343,2.6602,4087.2,4087.1,3.85002]
[1761621586840,2.6602,4087.2,4087.1,3.4096]
[1761621587041,2.6602,4087.2,4087.1,5.1696758]
[1761621587343,3.7286,4087.2,4087.1,5.1696758]
[1761621587532,3.7286,4087.2,4087.1,1.7600758]
[1761621593352,1.9913,4086.7,4086.6,1.7600758]
[1761621593646,3.7286,4086.7,4086.6,1.7600758]
[1761621593844,3.7286,4086.7,4086.6,3.024891]
[1761621594040,3.7286,4086.7,4086.6,1.2648152]
[1761621594245,0.44048,4086.5,4086.4,3.024891]
[1761621594549,1.4924,4085.8,4085.6,3.024891]
[1761621594744,3.7286,4085.7,4085.6,1.2648152]
[1761621594946,44.5286,4085.7,4085.6,1.2648152]
[1761621595548,44.5286,4085.7,4085.6,1.26680833]
[1761621598443,44.5286,4085.7,4085.6,0.00199313]
[1761621598652,1.9913,4084.6,4084.5,1.2648152]
[1761621599150,3.7286,4084.6,4084.5,1.2648152]
[1761621599539,3.73084712,4084.6,4084.5,1.26697519]
[1761621600546,4.17153712,4084.6,4084.5,0.00215999]
[1761621601147,3.73084712,4084.6,4084.5,0.00215999]
[1761621602252,44.53084712,4084.6,4084.5,0.00215999]
[1761621603751,44.97153712,4084.6,4084.5,0.00215999]
[1761621603948,44.53084712,4084.6,4084.5,2.23567519]
[1761621604150,44.53084712,4084.6,4084.5,3.67877519]
[1761621604345,0.00224712,4084.6,4084.5,5.65617519]
[1761621604854,0.91694712,4084.6,4084.5,5.65617519]
[1761621605051,0.00224712,4084.6,4084.5,5.65617519]
[1761621606657,2.1764,4085.2,4085.1,3.68364]
[1761621606848,3.3047,4085.4,4085.3,3.243]
[1761621607051,3.3047,4085.4,4085.3,0.9177]
[1761621607350,3.0598,4085.4,4085.3,3.243]
[1761621607551,3.0598,4085.4,4085.3,3.68361]
[1761621607851,3.06199241,4085.4,4085.3,3.68361]
[1761621608053,3.30689241,4085.4,4085.3,3.68361]
[1761621608250,0.88449241,4085.4,4085.3,3.243]
[1761621608455,0.00219241,4085.4,4085.3,3.68361]
[1761621609552,2.1764,4086.0,4085.9,3.243]
[1761621609855,3.3047,4086.0,4085.9,4.5078152]
[1761621610455,3.30728517,4086.0,4085.9,4.5078152]
[1761621610656,3.86398517,4086.0,4085.9,3.1126152]
[1761621611558,3.30728517,4086.0,4085.9,4.5078152]
[1761621611752,3.86398517,4086.0,4085.9,4.5078152]
[1761621611958,3.0598,4085.7,4085.6,0.9177]
[1761621612156,3.3047,4085.7,4085.6,2.1825152]
[1761621612363,3.3047,4085.7,4085.5,1.2648152]
[1761621612561,3.3047,4085.6,4085.5,1.2648152]
[1761621612963,3.0598,4085.6,4085.5,3.5777152]
[1761621613259,0.55928517,4086.0,4085.8,3.243]
[1761621613260,0.8823,4085.9,4085.8,3.243]
[1761621613465,0.8823,4085.9,4085.8,4.5078152]
[1761621613762,2.1764,4085.9,4085.8,4.5078152]
[1761621614963,0.00258517,4086.0,4085.9,1.3952]
[1761621615168,0.00258517,4086.0,4085.9,3.68355]
[1761621616667,1.2941,4085.9,4085.6,2.2291959]
[1761621616866,1.2941,4085.6,4085.5,1.2648152]
[1761621617067,3.0598,4085.6,4085.5,1.2648152]
[1761621617267,3.3047,4085.6,4085.5,1.2648152]
[1761621618264,0.4406,4085.5,4085.2,1.2648152]
[1761621618469,0.4406,4085.5,4084.5,1.26697519]
[1761621618470,1.2941,4084.7,4084.5,1.26697519]
[1761621618665,1.2941,4084.7,4084.5,0.00215999]
[1761621618666,3.3047,4084.6,4084.5,0.00215999]
[1761621619069,3.3047,4084.6,4084.5,1.26697519]
[1761621619364,44.1047,4084.6,4084.5,1.26697519]
[1761621619770,44.1047,4084.6,4084.5,0.00215999]
[1761621621263,44.1047,4084.6,4083.4,1.3952]
[1761621621264,42.8106,4084.6,4083.4,1.3114959]
[1761621621571,3.0598,4083.1,4083.0,3.68386]
[1761621621970,3.0598,4083.1,4083.0,1.8478]
[1761621622173,3.0598,4083.0,4082.9,3.243]
[1761621622474,3.0628921,4083.0,4082.9,3.24552952]
[1761621625475,0.0030921,4083.0,4082.9,3.24552952]
[1761621628073,0.0030921,4083.0,4082.9,6.46559074]
[1761621628276,0.0030921,4083.0,4082.9,3.24552952]
[1761621630568,3.0628921,4083.0,4082.9,3.24552952]
[1761621631076,1.7657,4084.4,4084.3,3.243]
[1761621631274,0.8823,4084.4,4084.3,3.243]
[1761621631575,2.4213,4084.4,4084.3,3.243]
[1761621631771,0.2449,4084.4,4084.3,3.243]
[1761621632173,0.24780804,4084.4,4084.3,3.243]
[1761621632674,0.00290804,4084.4,4084.3,3.243]
[1761621633469,2.01350804,4084.4,4084.2,0.44073]
[1761621633679,3.0598,4083.7,4083.6,3.243]
[1761621633874,3.0598,4083.7,4083.0,4.21329203]
[1761621633875,1.2941,4083.6,4083.1,2.75374]
[1761621634070,0.8823,4083.2,4083.1,5.41436366]
[1761621634274,0.8823,4083.2,4083.1,2.28864]
[1761621634676,0.8823,4083.2,4083.1,3.51484]
[1761621635176,3.0781,4083.2,4083.1,3.074]
[1761621636780,0.8823,4083.2,4083.1,3.074]
[1761621637281,0.00290804,4084.4,4084.3,3.0016]
[1761621637481,1.2962,4084.9,4084.3,3.0016]
[1761621637482,1.6944,4084.9,4084.8,2.066]
[1761621637779,1.6944,4084.9,4084.8,6.69439203]
[1761621637978,1.9393,4084.9,4084.8,6.69439203]
[1761621638180,0.2449,4084.9,4084.8,6.69439203]
[1761621638485,3.492,4085.5,4085.4,0.8398]
[1761621638687,3.49453206,4085.5,4085.4,0.8398]
[1761621638887,3.73943206,4085.5,4085.4,0.8398]
[1761621639582,1.2962,4085.4,4084.8,3.69279203]
[1761621639884,2.3359,4084.9,4084.8,6.69439203]
[1761621640075,2.091,4084.9,4084.8,6.69439203]
[1761621640582,3.2355,4084.9,4084.8,1.7754]
[1761621640885,2.9906,4084.1,4084.0,0.8398]
[1761621641185,3.2355,4084.1,4084.0,0.8398]
[1761621642487,1.2962,4084.0,4083.9,3.69279203]
[1761621642688,3.2355,4084.0,4083.9,3.69279203]
[1761621644182,3.7369,4084.0,4083.9,3.69279203]
[1761621646084,3.2355,4084.0,4083.9,6.69439203]
[1761621647789,3.2355,4084.0,4083.9,8.00621094]
[1761621648489,3.2355,4084.0,4083.9,6.69439203]
[1761621649188,1.9393,4084.0,4083.9,6.69439203]
[1761621649387,3.2355,4084.0,4083.9,8.01144286]
[1761621649585,0.44076,4083.9,4083.8,1.31705083]
[1761621649790,2.9906,4083.6,4083.5,2.066]
[1761621649980,2.9906,4083.6,4083.5,3.0016]
[1761621650388,2.13773848,4086.6,4083.5,3.0016]
[1761621650389,3.43127,4084.8,4084.7,3.0016]
[1761621650590,2.9906,4084.4,4084.3,5.75879203]
[1761621651191,1.2962,4084.8,4084.5,1.2262]
[1761621651384,1.6944,4084.6,4084.5,3.0016]
[1761621651586,3.2355,4084.6,4084.5,3.0016]
[1761621652088,1.0397,4084.6,4084.5,3.5193]
[1761621652788,1.2962,4084.5,4084.3,1.31692926]
[1761621652991,3.2355,4084.5,4084.4,3.0016]
[1761621653188,2.9906,4084.5,4084.4,3.0016]
[1761621653490,0.7948,4084.5,4084.4,3.44231]
[1761621653685,2.091,4084.8,4084.7,1.7754]
[1761621653891,2.9906,4084.8,4084.7,3.0016]
[1761621654286,3.2355,4084.8,4084.7,3.0016]
[1761621654792,1.0397,4084.8,4084.7,3.0016]
[1761621655385,2.3359,4084.8,4084.7,3.0016]
[1761621655793,3.2355,4084.8,4084.7,0.8398]
[1761621657285,3.2355,4084.8,4084.7,2.066]
[1761621658593,3.2355,4084.8,4084.7,3.0016]
[1761621659797,1.9393,4084.8,4084.7,3.44228]
[1761621660097,1.9393,4084.8,4084.7,3.0016]
[1761621660295,3.2355,4084.8,4084.7,3.0016]
[1761621662296,3.2355,4084.8,4084.7,0.8398]
[1761621662592,1.6944,4084.3,4084.0,1.31692926]
[1761621662799,0.5014,4084.5,4084.0,1.31692926]
[1761621662800,3.2355,4084.1,4084.0,1.31692926]
[1761621662991,44.47624,4084.1,4084.0,0.8398]
[1761621663187,43.18004,4084.1,4083.9,1.31692926]
[1761621663392,3.7369,4084.0,4083.9,2.15672926]
[1761621663699,3.7369,4084.0,4083.9,3.38292926]
[1761621664086,3.7369,4084.0,4083.9,2.066]
[1761621664892,3.7369,4084.0,4083.9,2.15821437]
[1761621665089,4.17765,4084.0,4083.8,1.31841437]
[1761621665390,4.17765,4084.0,4083.7,1.31841437]
[1761621665391,0.44078,4083.8,4083.7,1.31841437]
[1761621665594,2.8666,4083.7,4083.6,2.04461437]
[1761621666000,2.6217,4083.7,4083.6,3.19591437]
[1761621666198,3.06249,4083.7,4083.6,3.19591437]
[1761621666394,3.30739,4083.7,4083.6,1.31841437]
[1761621666600,2.5799,4083.4,4083.3,1.31841437]
[1761621667000,3.26562,4083.4,4083.3,1.31841437]
[1761621667295,1.8581,4083.9,4083.8,0.7633]
[1761621667502,0.9641,4083.9,4083.8,2.6402]
[1761621667696,0.2449,4083.9,4083.8,4.39939437]
[1761621667903,0.9641,4083.9,4083.8,4.39939437]
[1761621668099,2.8248,4083.9,4083.8,3.95861437]
[1761621668305,2.8248,4083.9,4083.8,2.78831437]
[1761621668504,2.8248,4083.9,4083.8,3.95861437]
[1761621668804,2.8248,4083.9,4083.8,2.08171437]
[1761621669004,2.8248,4083.9,4083.8,2.04471437]
[1761621669303,2.8248,4083.9,4083.8,3.92161437]
[1761621671103,2.8248,4083.9,4083.8,1.28141437]
[1761621671104,3.26556,4083.9,4083.8,1.28141437]
[1761621671303,2.5799,4083.5,4083.4,2.6402]
[1761621671895,2.5799,4083.3,4083.2,1.9336]
[1761621672105,2.8248,4083.3,4083.2,2.6402]
[1761621673401,2.5799,4083.0,4082.9,1.17282952]
[1761621673598,0.9641,4083.2,4083.1,0.7633]
[1761621673805,2.5799,4083.7,4083.6,2.6402]
[1761621673999,0.9641,4083.7,4083.6,2.6402]
[1761621674406,2.103,4083.7,4083.6,2.6402]
[1761621674605,2.5799,4083.7,4083.6,2.6402]
[1761621674809,1.8581,4084.0,4083.7,1.1703]
[1761621675007,2.103,4084.0,4083.9,2.6402]
[1761621675210,2.8248,4084.0,4083.9,2.6402]
[1761621675804,3.2786,4084.0,4083.9,2.6402]
[1761621676005,2.8248,4084.0,4083.9,2.6402]
[1761621677107,41.9389,4084.3,4083.9,1.91066]
[1761621677408,41.9389,4084.3,4084.2,0.7633]
[1761621677710,2.5799,4083.9,4083.8,2.6402]
[1761621677911,2.8248,4083.9,4083.8,0.7633]
[1761621678211,2.8248,4083.9,4083.8,2.6402]
[1761621678514,0.7192,4083.9,4083.8,2.6402]
[1761621678712,0.7192,4084.2,4084.1,2.6402]
[1761621678912,2.8248,4084.2,4084.1,2.6402]
[1761621681513,1.1389,4084.1,4083.6,3.22580568]
[1761621681717,2.5799,4083.7,4083.6,2.6402]
[1761621684108,0.7192,4084.1,4083.7,1.1703]
[1761621684315,0.9641,4083.8,4083.7,2.6402]
[1761621684623,2.103,4083.8,4083.7,2.6402]
[1761621684808,41.9389,4084.3,4083.8,1.61107]
[1761621685118,0.9641,4084.2,4084.1,2.6402]
[1761621685314,2.103,4084.2,4084.1,2.6402]
[1761621685516,1.8581,4084.5,4084.2,1.1703]
[1761621685713,1.8581,4084.5,4084.4,2.6402]
[1761621685913,2.103,4084.5,4084.4,2.6402]
[1761621686113,1.8581,4084.8,4084.6,1.1703]
[1761621686309,1.8581,4084.8,4084.7,2.6402]
[1761621686514,1.1389,4085.1,4084.7,3.08088]
[1761621686714,0.2449,4084.8,4084.7,3.08088]
[1761621687121,1.8581,4085.1,4085.0,1.4699]
[1761621687314,1.8581,4085.1,4085.0,2.6402]
[1761621687514,2.103,4085.1,4085.0,2.6402]
[1761621687822,0.2449,4085.1,4085.0,3.0828]
[1761621688320,0.2449,4085.1,4085.0,3.52345]
[1761621688820,0.9641,4085.1,4085.0,3.0828]
[1761621689215,0.9641,4085.1,4085.0,4.40042893]
[1761621689521,2.8248,4085.1,4085.0,3.95782893]
[1761621691016,0.2449,4085.1,4085.0,4.40042893]
[1761621691719,0.9641,4085.1,4085.0,4.40042893]
[1761621692120,0.9641,4085.1,4085.0,3.0828]
[1761621693420,2.8248,4085.1,4085.0,3.0828]
[1761621693721,1.1389,4085.0,4084.9,1.31762893]
[1761621693920,40.8,4085.4,4085.0,1.6129]
[1761621694115,0.00253206,4085.5,4085.4,2.4999]
[1761621695219,0.00253206,4085.5,4085.4,3.81507578]
[1761621697019,0.67713206,4085.5,4085.4,3.81507578]
[1761621698122,0.67713206,4085.5,4085.4,2.9405]
[1761621699027,0.00253206,4085.5,4085.4,4.25567578]
[1761621699319,0.00253206,4085.5,4085.4,6.18875884]
[1761621699524,1.6569,4086.4,4086.3,2.5023]
[1761621699726,2.3969,4086.4,4086.3,2.5023]
[1761621699925,43.1969,4086.4,4086.3,2.5023]
[1761621700127,43.4418,4086.4,4086.3,2.5023]
[1761621700427,43.44436754,4086.4,4086.3,2.50426145]
[1761621700627,2.64436754,4086.4,4086.3,2.50426145]
[1761621703023,0.24746754,4086.4,4086.3,2.50426145]
[1761621703227,0.24746754,4086.4,4086.3,2.94477145]
[1761621703429,0.00256754,4086.4,4086.3,2.94477145]
[1761621704327,0.6746,4087.5,4087.4,1.4723]
[1761621704631,59.841,4088.6,4087.6,1.7288]
[1761621704632,2.3969,4087.7,4087.6,1.7288]
[1761621704826,2.3969,4087.7,4087.6,0.6988]
[1761621705125,2.3969,4087.7,4087.6,1.91267]
[1761621705429,2.3994287,4087.7,4087.6,1.4723]
[1761621706724,2.3994287,4087.7,4087.6,2.5023]
[1761621708427,0.0025287,4087.7,4087.6,2.94267]
[1761621708624,0.0025287,4087.7,4087.6,2.5023]
[1761621713335,0.0025287,4087.7,4087.6,2.94267]
[1761621716237,2.3994287,4087.7,4087.6,1.4723]
[1761621717236,2.3994287,4087.7,4087.6,2.5023]
[1761621717435,2.3994287,4087.7,4087.6,2.94267]
[1761621718536,0.6771287,4087.7,4087.6,2.94267]
[1761621718931,1.6594287,4087.7,4087.6,2.94267]
[1761621721435,0.0025287,4087.7,4087.6,7.31271892]
[1761621724930,2.2190287,4087.7,4087.6,7.31271892]
[1761621725136,2.2190287,4087.7,4087.6,1.4723]
[1761621725736,2.2190287,4087.7,4087.6,2.4225]
[1761621725942,2.2190287,4087.7,4087.6,2.86287]
[1761621726442,2.2190287,4087.7,4087.6,1.4723]
[1761621726942,2.2190287,4087.7,4087.6,2.3718]
[1761621727130,0.0025287,4087.7,4087.6,2.81217]
[1761621727841,0.0025287,4087.7,4087.6,2.3718]
[1761621727842,1.4919287,4087.7,4087.6,2.3718]
[1761621728043,1.4919287,4087.7,4087.6,2.81217]
[1761621728244,0.5975287,4087.7,4087.6,2.81217]
[1761621728440,0.0025287,4087.7,4087.6,2.81217]
[1761621729236,0.0025287,4087.7,4087.6,3.68697578]
[1761621729443,0.0025287,4087.7,4087.2,0.5822]
[1761621729444,2.1179,4087.3,4087.2,0.5822]
[1761621729739,2.1179,4086.5,4086.4,2.0648]
[1761621729938,2.1179,4086.5,4086.4,3.37997578]
[1761621730336,2.4841,4086.5,4086.4,2.48047578]
[1761621730541,2.4841,4086.5,4086.4,1.1653]
[1761621733742,2.1179,4086.5,4086.4,2.0648]
[1761621733942,0.595,4086.9,4086.8,0.5822]
[1761621734147,1.2235,4086.9,4086.8,0.5822]
[1761621734548,2.1179,4086.9,4086.8,0.5822]
[1761621734948,0.8944,4086.8,4086.5,2.0648]
[1761621735148,2.1179,4086.6,4086.5,1.1653]
[1761621735448,2.1179,4086.6,4086.5,0.5822]
[1761621735750,1.2235,4086.4,4086.3,0.00196145]
[1761621735948,2.1179,4086.4,4086.3,0.00196145]
[1761621736143,2.1179,4086.4,4086.3,2.06676145]
[1761621736841,0.8944,4086.8,4086.6,0.8995]
[1761621737041,2.1179,4086.8,4086.7,2.0648]
[1761621738045,1.4894,4087.1,4087.0,1.1653]
[1761621738342,1.4894,4087.1,4087.0,2.0648]
[1761621738742,0.595,4087.1,4087.0,2.86263]
[1761621740848,0.8944,4087.4,4087.0,2.86263]
[1761621741048,2.1179,4087.4,4087.3,2.0648]
[1761621741450,2.1179,4087.4,4087.3,1.1653]
[1761621741647,2.1179,4087.4,4086.7,0.8995]
[1761621741648,0.8944,4087.3,4086.7,0.8995]
[1761621741849,1.4894,4086.8,4086.7,2.50526]
[1761621742153,0.595,4086.8,4086.7,2.50526]
[1761621742550,1.4894,4086.8,4086.7,2.50526]
[1761621745650,1.4894,4086.8,4086.6,4.37004892]
[1761621745651,1.4894,4087.2,4087.1,1.02262]
[1761621745846,0.3662,4087.5,4087.2,0.44041]
[1761621745847,1.4894,4087.4,4087.2,0.44041]
[1761621746057,0.595,4087.4,4087.3,2.5052]
[1761621746253,0.8944,4087.6,4087.4,0.8995]
[1761621746453,1.4894,4087.6,4087.4,0.8995]
[1761621746656,1.2235,4087.6,4087.5,2.0648]
[1761621747155,2.1179,4087.6,4087.5,2.0648]
[1761621747557,1.4919287,4087.7,4087.6,2.0648]
[1761621747849,1.4919287,4087.7,4087.6,2.50517]
[1761621748049,0.0025287,4087.7,4087.6,2.50517]
[1761621748253,0.8944,4088.0,4087.6,2.50517]
[1761621748457,2.4841,4088.0,4087.9,6.43484892]
[1761621748651,2.4841,4088.0,4087.9,4.95224892]
[1761621748854,2.1179,4087.7,4087.6,0.5822]
[1761621749050,2.1179,4087.7,4086.9,2.34877383]
[1761621749051,2.1179,4087.3,4087.0,4.37004892]
[1761621749252,2.1179,4087.1,4087.0,6.43484892]
[1761621750954,2.1179,4087.1,4087.0,6.87527892]
[1761621751260,2.1179,4087.1,4087.0,6.43484892]
[1761621751759,2.1179,4087.1,4087.0,5.53534892]
[1761621751960,2.1179,4087.1,4087.0,6.43484892]
[1761621752560,2.1179,4087.1,4087.0,4.37004892]
[1761621752761,2.1179,4086.8,4086.7,1.4817]
[1761621753057,2.1179,4086.8,4086.7,0.5822]
[1761621753959,2.4841,4086.5,4086.4,2.33810568]
[1761621754153,2.4841,4086.5,4086.4,0.5822]
[1761621755861,2.4841,4086.5,4086.3,0.00196145]